bitfinex-derivatives/quotes_BTCF0:USTF0_20250704
["timestamp","ask_amount","ask_price","bid_price","bid_amount"]
[1751606812929,2.33700995,109040.0,109030.0,0.25902619]
[1751606813232,2.34605101,109040.0,109030.0,0.49902619]
[1751606813431,2.34605101,109040.0,109030.0,0.25902619]
[1751606813928,2.0965416,109040.0,109030.0,0.25902619]
[1751606814116,2.0985416,109040.0,109030.0,0.51002619]
[1751606814316,2.07636184,109040.0,109030.0,0.26002619]
[1751606815931,2.07636184,109040.0,109030.0,0.25902619]
[1751606816226,2.05729475,109040.0,109030.0,0.19902619]
[1751606816432,2.28957475,109040.0,109030.0,0.50902619]
[1751606816626,1.1676757,109040.0,109030.0,0.44892418]
[1751606816828,1.1676757,109040.0,109030.0,0.60892418]
[1751606817220,1.1696757,109040.0,109030.0,0.60892418]
[1751606817425,0.1241,109040.0,109030.0,0.96972418]
[1751606817720,0.094,109040.0,109030.0,1.04725696]
[1751606821435,0.094,109040.0,109030.0,1.04714106]
[1751606821934,0.2773557,109040.0,109030.0,0.79724307]
[1751606822133,0.2773557,109040.0,109030.0,1.04714106]
[1751606822434,0.3105557,109040.0,109030.0,1.04714106]
[1751606822636,0.3105557,109040.0,109030.0,0.68634106]
[1751606823236,0.3105557,109040.0,109030.0,0.70393005]
[1751606825039,0.3105557,109040.0,109030.0,0.45403206]
[1751606825337,0.3105557,109040.0,109030.0,0.70393005]
[1751606827539,0.3105557,109040.0,109030.0,1.06473005]
[1751606827728,0.1272,109040.0,109030.0,1.06473005]
[1751606828138,0.1272,109040.0,109030.0,1.06479539]
[1751606828837,0.3105557,109040.0,109030.0,1.0472064]
[1751606829740,0.1272,109040.0,109030.0,1.0472064]
[1751606830833,0.3105557,109040.0,109030.0,1.0472064]
[1751606831239,0.3105557,109040.0,109030.0,1.04721549]
[1751606832238,0.1272,109040.0,109030.0,1.04721549]
[1751606832639,0.2773557,109040.0,109030.0,1.04721549]
[1751606835137,0.094,109040.0,109030.0,1.04721549]
[1751606837239,0.094,109040.0,109030.0,1.1019073]
[1751606838341,0.2773557,109040.0,109030.0,0.85200931]
[1751606838543,0.2773557,109040.0,109030.0,1.1019073]
[1751606839239,0.2773557,109040.0,109030.0,0.7411073]
[1751606839441,0.2773557,109040.0,109030.0,1.1019073]
[1751606840240,0.2773557,109040.0,109030.0,1.08812909]
[1751606840447,0.2773557,109040.0,109030.0,1.1019168]
[1751606843456,0.094,109040.0,109030.0,1.10192528]
[1751606843954,0.2773557,109040.0,109030.0,1.10192528]
[1751606844946,0.094,109040.0,109030.0,1.10192528]
[1751606846454,0.094,109040.0,109030.0,1.04723347]
[1751606846954,0.094,109040.0,109030.0,1.12048911]
[1751606849565,0.094,109040.0,109030.0,1.12050826]
[1751606851866,0.094,109040.0,109030.0,1.12043907]
[1751606852769,0.11637784,109040.0,109030.0,1.04718343]
[1751606855570,0.11637784,109040.0,109030.0,1.04714882]
[1751606856066,0.094,109040.0,109030.0,1.04714882]
[1751606857572,0.094,109040.0,109030.0,1.06454566]
[1751606858571,0.094,109040.0,109030.0,1.06452277]
[1751606859270,0.094,109040.0,109030.0,1.13777841]
[1751606859777,0.004,109040.0,109030.0,2.22432721]
[1751606860067,0.0307,109050.0,109040.0,0.1833557]
[1751606860276,0.2307,109050.0,109040.0,1.53955038]
[1751606860974,0.2307,109050.0,109040.0,1.52575793]
[1751606861268,0.203,109050.0,109040.0,1.89675793]
[1751606861475,0.203,109050.0,109040.0,2.17768673]
[1751606861670,0.13787418,109050.0,109040.0,2.17769921]
[1751606861976,0.007,109050.0,109040.0,1.92787041]
[1751606863276,0.007,109050.0,109040.0,1.95787041]
[1751606863669,0.007,109050.0,109040.0,2.20769921]
[1751606863866,0.007,109050.0,109040.0,1.88423715]
[1751606864070,0.007,109050.0,109040.0,1.97590042]
[1751606864276,0.007,109050.0,109040.0,1.95748865]
[1751606864766,0.007,109050.0,109040.0,1.88423715]
[1751606865177,0.007,109050.0,109040.0,1.95746082]
[1751606867079,0.007,109050.0,109040.0,2.20616082]
[1751606867779,0.007,109050.0,109040.0,1.95636871]
[1751606869481,0.007,109050.0,109040.0,2.49368871]
[1751606869682,0.007,109050.0,109040.0,2.70368871]
[1751606869883,0.007,109050.0,109040.0,2.48368871]
[1751606870084,0.007,109050.0,109040.0,2.39368871]
[1751606870381,0.007,109050.0,109040.0,2.73368871]
[1751606871178,0.007,109050.0,109040.0,2.74368871]
[1751606871383,0.007,109050.0,109040.0,2.49498871]
[1751606872182,0.007,109050.0,109040.0,2.74467424]
[1751606873879,0.007,109050.0,109040.0,2.49498871]
[1751606875287,0.007,109050.0,109040.0,2.74467424]
[1751606875789,0.007,109050.0,109040.0,2.49498871]
[1751606876986,0.007,109050.0,109040.0,2.74467424]
[1751606877388,0.007,109050.0,109040.0,2.99337424]
[1751606878888,1e-07,109050.0,109040.0,2.99337424]
[1751606879787,1e-07,109050.0,109040.0,2.74368871]
[1751606881691,1e-07,109050.0,109040.0,2.74367833]
[1751606882194,1e-07,109050.0,109040.0,2.74367956]
[1751606883393,1e-07,109050.0,109040.0,2.4807849]
[1751606886097,1e-07,109050.0,109040.0,1.29837937]
[1751606886393,0.0940001,109050.0,109040.0,2.30172123]
[1751606886590,0.0305001,109050.0,109040.0,2.45311691]
[1751606887094,0.0305001,109050.0,109040.0,2.39822123]
[1751606887598,1e-07,109050.0,109040.0,2.64790676]
[1751606889000,1e-07,109050.0,109040.0,2.39822123]
[1751606890296,1e-07,109050.0,109040.0,2.64790676]
[1751606890489,1e-07,109050.0,109040.0,2.73957003]
[1751606890692,1e-07,109050.0,109040.0,2.64790676]
[1751606890899,1e-07,109050.0,109040.0,2.73957003]
[1751606891794,1e-07,109050.0,109040.0,2.84957003]
[1751606892403,1e-07,109050.0,109040.0,3.33121829]
[1751606892594,1e-07,109050.0,109040.0,3.25790676]
[1751606895102,1e-07,109050.0,109040.0,3.50660676]
[1751606895502,0.0332,109070.0,109060.0,0.1833221]
[1751606895701,0.0332,109070.0,109060.0,2.70896454]
[1751606896001,0.0332,109070.0,109060.0,2.8962042]
[1751606896804,0.0422,109070.0,109060.0,2.90627934]
[1751606897005,0.0422,109070.0,109060.0,2.32659381]
[1751606897200,0.0422,109070.0,109060.0,2.38193968]
[1751606897503,0.0752,109070.0,109060.0,2.38193968]
[1751606898104,0.0752,109070.0,109060.0,2.38261968]
[1751606898295,0.0752,109070.0,109060.0,2.45586916]
[1751606898496,0.0712,109070.0,109060.0,2.45678916]
[1751606898701,0.0672,109070.0,109060.0,2.45678916]
[1751606899502,0.0672,109070.0,109060.0,1.29756849]
[1751606899704,0.82019083,109070.0,109060.0,0.91844875]
[1751606899902,0.82019083,109070.0,109060.0,0.55764875]
[1751606900104,1.18099083,109070.0,109060.0,0.55764875]
[1751606901107,0.9313053,109070.0,109060.0,0.55764875]
[1751606901601,0.6113053,109070.0,109060.0,0.55764875]
[1751606901802,0.9313053,109070.0,109060.0,0.55764875]
[1751606902507,0.5705053,109070.0,109060.0,0.55764875]
[1751606902806,0.9313053,109070.0,109060.0,0.55764875]
[1751606904008,0.748,109070.0,109060.0,0.55764875]
[1751606904209,0.9313053,109070.0,109060.0,0.80733428]
[1751606906105,0.428,109070.0,109060.0,0.80733428]
[1751606907513,0.0672,109070.0,109060.0,1.16813428]
[1751606911014,0.2505053,109070.0,109060.0,0.80733428]
[1751606911413,0.6229212,109070.0,109060.0,0.80733428]
[1751606911614,0.6005053,109070.0,109060.0,0.80733428]
[1751606914112,0.62301289,109070.0,109060.0,0.75240454]
[1751606918318,0.43970759,109070.0,109060.0,0.75240454]
[1751606918618,0.62301289,109070.0,109060.0,0.75240454]
[1751606919621,0.27301289,109070.0,109060.0,0.75240454]
[1751606920119,0.61301289,109070.0,109060.0,0.75240454]
[1751606921124,0.61301289,109070.0,109060.0,0.80733428]
[1751606924229,0.5905053,109070.0,109060.0,0.80733428]
[1751606926637,0.2505053,109070.0,109060.0,0.80733428]
[1751606926836,0.0672,109070.0,109060.0,0.84053428]
[1751606928634,0.0672,109070.0,109060.0,0.90453428]
[1751606928936,0.0672,109070.0,109060.0,0.65484875]
[1751606929130,0.08973618,109070.0,109060.0,0.90453428]
[1751606929935,0.08973618,109070.0,109060.0,1.26533428]
[1751606930135,0.08973618,109070.0,109060.0,1.21040454]
[1751606930329,0.05673618,109070.0,109060.0,1.21040454]
[1751606931135,0.05673618,109070.0,109060.0,0.9046054]
[1751606931335,0.05673618,109070.0,109060.0,0.90460706]
[1751606931535,0.001,109070.0,109060.0,1.28365402]
[1751606932135,0.02353759,109070.0,109060.0,1.21040454]
[1751606932535,0.02353759,109070.0,109060.0,1.26540622]
[1751606932936,0.02353759,109070.0,109060.0,1.60540622]
[1751606933136,0.02353759,109070.0,109060.0,1.55040454]
[1751606934831,0.001,109070.0,109060.0,1.62365402]
[1751606937639,0.001,109070.0,109060.0,1.59245402]
[1751606937842,0.001,109070.0,109060.0,1.62295402]
[1751606941442,0.001,109070.0,109060.0,1.62375402]
[1751606942035,0.001,109070.0,109060.0,2.45951402]
[1751606943846,0.001,109070.0,109060.0,2.57951402]
[1751606946447,0.001,109070.0,109060.0,2.50626454]
[1751606947651,0.001,109070.0,109060.0,2.57954547]
[1751606947844,0.001,109070.0,109060.0,2.82914058]
[1751606956856,0.001,109070.0,109060.0,2.48914058]
[1751606958855,0.001,109070.0,109060.0,1.98985994]
[1751606959056,0.001,109070.0,109060.0,2.48914058]
[1751606959657,0.001,109070.0,109060.0,2.41585965]
[1751606959860,0.001,109070.0,109060.0,2.47082062]
[1751606960060,0.001,109070.0,109060.0,2.41585965]
[1751606964157,0.001,109070.0,109060.0,2.48914058]
[1751606967264,0.001,109070.0,109060.0,1.98985994]
[1751606967459,0.001,109070.0,109060.0,2.48914058]
[1751606968166,0.001,109070.0,109060.0,2.41585965]
[1751606969170,0.001,109070.0,109060.0,2.66549997]
[1751606969664,0.001,109070.0,109060.0,2.75710113]
[1751606970261,0.001,109070.0,109060.0,3.13710113]
[1751606970568,0.001,109070.0,109060.0,3.20938947]
[1751606971869,0.57205472,109110.0,109100.0,0.1832548]
[1751606972062,1.21204458,109110.0,109100.0,0.97253544]
[1751606972263,1.4616849,109110.0,109100.0,0.97253544]
[1751606972568,1.4616849,109110.0,109100.0,0.72289512]
[1751606972968,1.4676849,109110.0,109100.0,0.72389512]
[1751606973266,1.4995849,109110.0,109100.0,0.72389512]
[1751606973468,1.25694458,109110.0,109100.0,0.72489512]
[1751606973669,1.5065849,109110.0,109100.0,0.72489512]
[1751606973967,1.5065849,109110.0,109100.0,0.73910603]
[1751606974470,2.3435049,109110.0,109100.0,0.48946571]
[1751606974667,2.41675302,109110.0,109100.0,0.73910603]
[1751606974867,2.1671127,109110.0,109100.0,0.73910603]
[1751606975067,2.41675302,109110.0,109100.0,0.73910603]
[1751606975467,2.41675302,109110.0,109100.0,0.72489512]
[1751606975669,2.42616437,109110.0,109100.0,0.72489512]
[1751606978867,2.41675302,109110.0,109100.0,0.72489512]
[1751606979866,2.41651302,109110.0,109100.0,0.72489512]
[1751606980570,1.0508547,109110.0,109100.0,0.72489512]
[1751606980775,0.11555186,109110.0,109100.0,1.60262121]
[1751606980974,0.11555186,109110.0,109100.0,1.40797165]
[1751606981171,0.14755186,109110.0,109100.0,1.44107165]
[1751606981474,0.125,109110.0,109100.0,1.38608089]
[1751606981863,0.002,109120.0,109110.0,0.1832383]
[1751606982067,0.002,109120.0,109110.0,1.76207111]
[1751606982268,0.002,109120.0,109110.0,1.44207111]
[1751606982980,0.90773083,109150.0,109110.0,1.44207111]
[1751606982981,0.37990863,109150.0,109140.0,0.1831879]
[1751606983274,1.66295894,109150.0,109140.0,0.7225744]
[1751606983466,0.80400863,109150.0,109140.0,0.7225744]
[1751606983666,1.82385973,109150.0,109140.0,0.7225744]
[1751606984067,0.70990863,109150.0,109140.0,0.7225744]
[1751606984267,0.34910863,109150.0,109140.0,1.0035609]
[1751606984467,0.01910863,109150.0,109140.0,1.0671609]
[1751606984669,0.02710863,109150.0,109140.0,1.4279609]
[1751606985070,0.02710863,109150.0,109140.0,1.43736548]
[1751606986677,0.02310863,109150.0,109140.0,1.43736548]
[1751606988280,0.02310863,109150.0,109140.0,2.27380548]
[1751606989086,0.02710863,109150.0,109140.0,2.27380548]
[1751606989884,0.02510863,109150.0,109140.0,2.27380548]
[1751606991084,0.02510863,109150.0,109140.0,2.2644009]
[1751606991283,0.02510863,109150.0,109140.0,1.1785744]
[1751606991985,0.02510863,109150.0,109140.0,1.1472744]
[1751606992185,0.12080863,109150.0,109140.0,1.1472744]
[1751606992590,0.12080863,109150.0,109140.0,1.0843744]
[1751606996087,0.05600863,109150.0,109140.0,1.1163744]
[1751606996289,0.05600863,109150.0,109140.0,1.7388609]
[1751606996588,0.02510863,109150.0,109140.0,1.7388609]
[1751606996896,0.02510863,109150.0,109140.0,2.5749409]
[1751606998101,0.02510863,109150.0,109140.0,2.7049409]
[1751606998291,0.02510863,109150.0,109140.0,2.7051009]
[1751606999092,0.002,109160.0,109150.0,0.1831711]
[1751606999295,0.002,109160.0,109150.0,1.6182576]
[1751606999896,0.002,109160.0,109150.0,1.2382576]
[1751607000088,0.002,109160.0,109150.0,1.5482576]
[1751607000690,0.006,109160.0,109150.0,1.5492576]
[1751607000892,0.006,109160.0,109150.0,1.4892576]
[1751607001293,0.01,109160.0,109150.0,1.4892576]
[1751607002792,0.008,109160.0,109150.0,1.5792576]
[1751607002999,0.01926728,109180.0,109170.0,0.1831376]
[1751607003197,0.35926728,109180.0,109170.0,0.9719106]
[1751607003398,0.35926728,109180.0,109170.0,1.4371106]
[1751607003794,0.34,109180.0,109170.0,1.0671106]
[1751607003989,0.34,109180.0,109170.0,0.7853241]
[1751607004200,0.5553208,109180.0,109170.0,0.4731376]
[1751607004398,0.5914208,109180.0,109170.0,0.4731376]
[1751607004803,0.8408073,109180.0,109170.0,0.4731376]
[1751607005100,1.2066073,109180.0,109170.0,0.4731376]
[1751607005503,0.9572208,109180.0,109170.0,0.4731376]
[1751607005705,0.7691,109180.0,109170.0,0.7225241]
[1751607005898,0.737,109180.0,109170.0,0.9719106]
[1751607006093,0.741,109180.0,109170.0,1.0024106]
[1751607006291,0.3802,109180.0,109170.0,1.3632106]
[1751607006700,0.3802,109180.0,109170.0,1.1138241]
[1751607008305,0.3782,109180.0,109170.0,1.1138241]
[1751607008604,0.126,109180.0,109170.0,1.4281106]
[1751607008807,0.126,109180.0,109170.0,1.7781106]
[1751607009006,0.126,109180.0,109170.0,1.4281106]
[1751607009196,0.126,109180.0,109170.0,1.7981106]
[1751607009901,0.006,109180.0,109170.0,2.5147106]
[1751607010105,0.006,109180.0,109170.0,2.9555106]
[1751607013006,0.004,109180.0,109170.0,2.9555106]
[1751607013201,0.002,109200.0,109190.0,0.1831041]
[1751607013397,0.322,109200.0,109190.0,1.1132906]
[1751607013597,0.322,109200.0,109190.0,1.1457906]
[1751607013803,0.3522,109200.0,109190.0,1.1457906]
[1751607014106,0.322,109200.0,109190.0,1.1628857]
[1751607014602,0.3562,109200.0,109190.0,1.1628857]
[1751607014804,0.3582,109200.0,109190.0,1.1628857]
[1751607015205,0.328,109200.0,109190.0,1.1628857]
[1751607015407,0.328,109200.0,109190.0,1.2263857]
[1751607015603,0.328,109200.0,109190.0,1.6063857]
[1751607015806,0.008,109200.0,109190.0,3.0533722]
[1751607016308,0.008,109200.0,109190.0,3.06243345]
[1751607016709,0.008,109200.0,109190.0,3.11243345]
[1751607016901,0.003,109200.0,109190.0,2.86304695]
[1751607017101,0.005,109200.0,109190.0,2.86304695]
[1751607017301,0.005,109200.0,109190.0,2.93514053]
[1751607017508,0.005,109200.0,109190.0,3.18452703]
[1751607019005,0.005,109200.0,109190.0,2.55514053]
[1751607019205,0.005,109200.0,109190.0,2.89514053]
[1751607019412,0.003,109200.0,109190.0,2.89514053]
[1751607019708,0.004,109200.0,109190.0,2.4237857]
[1751607019909,0.003,109200.0,109190.0,2.4237857]
[1751607020204,0.323,109200.0,109190.0,1.1638857]
[1751607020411,0.415,109200.0,109190.0,1.1313857]
[1751607020606,0.095,109200.0,109190.0,1.1313857]
[1751607020905,0.2780873,109200.0,109190.0,1.1313857]
[1751607021112,0.095,109200.0,109190.0,1.1313857]
[1751607021313,0.2780873,109200.0,109190.0,1.1313857]
[1751607021508,0.095,109200.0,109190.0,1.1313857]
[1751607021707,0.2780873,109200.0,109190.0,1.1313857]
[1751607023409,0.095,109200.0,109190.0,1.1313857]
[1751607025007,0.003,109200.0,109190.0,1.5241857]
[1751607025202,0.003,109200.0,109190.0,1.4440722]
[1751607025404,0.003,109200.0,109190.0,1.4640722]
[1751607025614,0.003,109200.0,109190.0,1.8340722]
[1751607027213,0.003,109200.0,109190.0,1.5140722]
[1751607030716,0.003,109200.0,109190.0,1.8440722]
[1751607030909,0.003,109200.0,109190.0,1.89872963]
[1751607032713,0.003,109200.0,109190.0,2.25952963]
[1751607037424,0.003,109200.0,109190.0,2.2048722]
[1751607038325,0.003,109200.0,109190.0,2.27774878]
[1751607040429,1e-07,109200.0,109190.0,2.27774878]
[1751607041133,0.11549803,109220.0,109210.0,0.1830707]
[1751607041322,0.46549803,109220.0,109210.0,1.96403484]
[1751607041530,0.35,109220.0,109210.0,2.32403484]
[1751607041727,0.59612,109240.0,109230.0,0.1830372]
[1751607041934,0.72539369,109240.0,109230.0,0.7024237]
[1751607042936,0.82049369,109240.0,109230.0,0.7024237]
[1751607044139,0.82549369,109240.0,109230.0,0.7024237]
[1751607045429,0.82549369,109240.0,109230.0,0.9518102]
[1751607046337,0.8029,109240.0,109230.0,0.7024237]
[1751607046639,0.8029,109240.0,109230.0,0.9518102]
[1751607047439,0.8029,109240.0,109230.0,0.7024237]
[1751607052142,0.8029,109240.0,109230.0,0.4530372]
[1751607052342,0.4421,109240.0,109230.0,0.7024237]
[1751607052544,0.4421,109240.0,109230.0,1.0632237]
[1751607056547,0.4421,109240.0,109230.0,1.3126102]
[1751607056749,0.4421,109240.0,109230.0,1.3445102]
[1751607057151,0.4421,109240.0,109230.0,0.8457372]
[1751607057347,0.4421,109240.0,109230.0,1.3445102]
[1751607057547,0.3789,109240.0,109230.0,1.3445102]
[1751607057742,0.017,109240.0,109230.0,2.2121902]
[1751607057953,0.007,109240.0,109230.0,2.58696784]
[1751607058854,1e-07,109240.0,109230.0,2.58696784]
[1751607059552,1.63464282,109280.0,109270.0,0.1829705]
[1751607059750,1.63464282,109280.0,109270.0,0.742357]
[1751607059751,0.88225216,109280.0,109270.0,0.742357]
[1751607060346,1.06520596,109280.0,109270.0,0.1829705]
[1751607060849,1.06520596,109280.0,109270.0,0.4429705]
[1751607061050,1.07020596,109280.0,109270.0,0.4429705]
[1751607061245,1.07720596,109280.0,109270.0,0.4439705]
[1751607063252,1.07720596,109280.0,109270.0,0.1839705]
[1751607063452,1.32659246,109280.0,109270.0,0.1839705]
[1751607064252,1.399457,109280.0,109270.0,0.1839705]
[1751607064652,1.1500705,109280.0,109270.0,0.1839705]
[1751607065044,1.399457,109280.0,109270.0,0.1839705]
[1751607065243,1.649457,109280.0,109270.0,0.1839705]
[1751607065449,1.96970391,109280.0,109260.0,0.137233]
[1751607065655,1.630797,109270.0,109260.0,0.3302081]
[1751607065852,2.010797,109270.0,109260.0,0.3302081]
[1751607066050,0.1829873,109260.0,109250.0,0.2744881]
[1751607066245,1.15284257,109260.0,109250.0,0.1829879]
[1751607066452,1.33589857,109260.0,109250.0,0.1829879]
[1751607066651,1.35812447,109260.0,109250.0,0.1829879]
[1751607067854,1.36212447,109260.0,109250.0,0.1829879]
[1751607070557,1.11273797,109260.0,109250.0,0.1829879]
[1751607070756,1.36212447,109260.0,109250.0,0.1829879]
[1751607073360,1.17906847,109260.0,109250.0,0.1829879]
[1751607073658,1.36212447,109260.0,109250.0,0.1829879]
[1751607074661,1.17906847,109260.0,109250.0,0.1829879]
[1751607075261,0.92968197,109260.0,109250.0,0.1829879]
[1751607075462,1.17906847,109260.0,109250.0,0.1829879]
[1751607075664,0.92968197,109260.0,109250.0,0.1829879]
[1751607075862,1.17906847,109260.0,109250.0,0.1829879]
[1751607076163,0.92968197,109260.0,109250.0,0.7523744]
[1751607076363,0.74669467,109260.0,109250.0,0.4323744]
[1751607076566,1.76688227,109260.0,109250.0,0.7533744]
[1751607076762,0.92968227,109260.0,109250.0,0.7533744]
[1751607076966,0.71649467,109260.0,109250.0,0.7533744]
[1751607077158,1.35166877,109260.0,109250.0,0.7833744]
[1751607077366,0.99086877,109260.0,109250.0,0.7833744]
[1751607077566,0.15346877,109260.0,109250.0,0.7833744]
[1751607077762,0.99086877,109260.0,109250.0,0.7833744]
[1751607077956,0.99086877,109260.0,109250.0,1.1441744]
[1751607078157,0.99102877,109260.0,109250.0,1.19880037]
[1751607079468,0.15346877,109260.0,109250.0,1.19880037]
[1751607086564,0.33346877,109260.0,109250.0,1.21651514]
[1751607087469,0.87725657,109260.0,109250.0,0.85571514]
[1751607087664,0.90975657,109260.0,109250.0,0.77108917]
[1751607087870,0.97115657,109260.0,109250.0,0.77108917]
[1751607089169,0.99342247,109260.0,109250.0,0.77108917]
[1751607091072,1.24280897,109260.0,109250.0,0.20070267]
[1751607091571,1.24280897,109260.0,109250.0,0.1829879]
[1751607091572,1.2233402,109260.0,109250.0,0.1829879]
[1751607091771,1.24255947,109260.0,109250.0,0.1829879]
[1751607093566,1.72545417,109260.0,109230.0,0.21917582]
[1751607093768,1.2212678,109250.0,109240.0,0.1830213]
[1751607093970,2.0000884,109250.0,109240.0,0.1830213]
[1751607094274,0.183038,109230.0,109220.0,0.32919077]
[1751607094577,0.183038,109230.0,109220.0,0.2745648]
[1751607094578,1.75336401,109230.0,109220.0,0.2745648]
[1751607094773,1.81786401,109230.0,109220.0,0.2745648]
[1751607095466,1.81786401,109230.0,109220.0,0.2845648]
[1751607095872,1.81786401,109230.0,109220.0,0.3055648]
[1751607096274,1.81786401,109230.0,109220.0,0.2755648]
[1751607096871,1.81786401,109230.0,109220.0,0.3455648]
[1751607097176,1.81786401,109230.0,109220.0,0.8479513]
[1751607098073,1.795618,109230.0,109220.0,0.8479513]
[1751607100579,1.795618,109230.0,109220.0,0.5379513]
[1751607101081,1.795618,109230.0,109220.0,0.8079513]
[1751607103880,1.535618,109230.0,109220.0,0.8079513]
[1751607104179,1.795618,109230.0,109220.0,0.8079513]
[1751607105681,1.795658,109230.0,109220.0,0.8079513]
[1751607105880,1.795658,109230.0,109220.0,0.8400513]
[1751607106378,0.958338,109230.0,109220.0,0.8400513]
[1751607106576,0.64212428,109240.0,109230.0,0.1830381]
[1751607106776,1.79352768,109240.0,109230.0,0.7545246]
[1751607106976,1.79352768,109240.0,109230.0,0.8189246]
[1751607107280,1.79351398,109240.0,109230.0,0.8189246]
[1751607107877,0.41253268,109240.0,109230.0,0.8199246]
[1751607108082,0.99667268,109240.0,109230.0,1.0693111]
[1751607108382,0.99667268,109240.0,109230.0,0.8199246]
[1751607108972,1.03969398,109240.0,109230.0,0.8199246]
[1751607109178,1.35969398,109240.0,109230.0,0.8199246]
[1751607112482,0.01943268,109240.0,109230.0,1.0693111]
[1751607112690,0.14943268,109240.0,109230.0,1.4301111]
[1751607117186,0.14943268,109240.0,109230.0,1.48473707]
[1751607121989,0.14943268,109240.0,109230.0,0.87455057]
[1751607123191,0.18223268,109240.0,109230.0,0.87455057]
[1751607124194,0.23525398,109240.0,109230.0,0.56076407]
[1751607124389,0.67785398,109240.0,109230.0,0.52866407]
[1751607125094,0.67785398,109240.0,109230.0,0.77805057]
[1751607125289,0.99785398,109240.0,109230.0,0.77805057]
[1751607125687,0.99785398,109240.0,109230.0,0.52866407]
[1751607125992,0.99785398,109240.0,109230.0,0.77805057]
[1751607127087,0.81483268,109240.0,109230.0,0.77805057]
[1751607127691,0.45403268,109240.0,109230.0,0.77805057]
[1751607128193,0.81483268,109240.0,109230.0,0.81065057]
[1751607129098,0.99785398,109240.0,109230.0,0.81065057]
[1751607129393,0.81483268,109240.0,109230.0,0.81065057]
[1751607130696,0.51483268,109240.0,109230.0,0.81065057]
[1751607131097,0.69785398,109240.0,109230.0,0.81065057]
[1751607131396,0.51483268,109240.0,109230.0,0.81065057]
[1751607132194,0.85483268,109240.0,109230.0,0.81065057]
[1751607133396,0.79483268,109240.0,109230.0,0.81065057]
[1751607133799,0.16403268,109240.0,109230.0,0.81065057]
[1751607134996,0.16403268,109240.0,109230.0,1.06003707]
[1751607135492,0.16403268,109240.0,109230.0,1.09223707]
[1751607137396,0.34705398,109240.0,109230.0,1.09223707]
[1751607137595,0.34705398,109240.0,109230.0,0.84285057]
[1751607137897,0.16403268,109240.0,109230.0,0.84285057]
[1751607138198,0.16403268,109240.0,109230.0,1.09223707]
[1751607138398,0.1861476,109240.0,109230.0,1.09223707]
[1751607138600,0.13333268,109240.0,109230.0,1.09223707]
[1751607138792,0.10223268,109240.0,109230.0,1.09223707]
[1751607139008,0.10223268,109240.0,109230.0,0.84285057]
[1751607139997,0.10223268,109240.0,109230.0,1.09223707]
[1751607140298,0.10223268,109240.0,109230.0,1.0376111]
[1751607140795,0.06943268,109240.0,109230.0,1.0376111]
[1751607141698,0.05,109240.0,109230.0,1.0376111]
[1751607141995,0.05,109240.0,109230.0,1.11064795]
[1751607143795,0.05,109240.0,109230.0,1.0376111]
[1751607144299,0.07211685,109240.0,109230.0,1.09237499]
[1751607151703,0.07211685,109240.0,109230.0,1.45317499]
[1751607152704,0.07211685,109240.0,109230.0,1.09237499]
[1751607152904,0.07211685,109240.0,109230.0,1.20378849]
[1751607154200,0.05,109240.0,109230.0,1.22206145]
[1751607157008,0.05,109240.0,109230.0,1.47144795]
[1751607157812,0.05,109240.0,109230.0,1.22206145]
[1751607159310,0.05,109240.0,109230.0,1.47144795]
[1751607161910,0.0302,109250.0,109240.0,0.1830213]
[1751607162116,0.35212776,109250.0,109240.0,1.23259348]
[1751607162411,0.35212776,109250.0,109240.0,1.38539978]
[1751607162714,0.11212776,109250.0,109240.0,1.38539978]
[1751607162910,0.09,109250.0,109240.0,1.40365505]
[1751607163111,0.091,109250.0,109240.0,1.40365505]
[1751607163313,0.092,109250.0,109240.0,1.40365505]
[1751607164316,0.092,109250.0,109240.0,1.15426855]
[1751607164509,0.092,109250.0,109240.0,1.40365505]
[1751607167915,0.092,109250.0,109240.0,1.47575876]
[1751607168218,0.092,109250.0,109240.0,1.40272191]
[1751607170114,0.092,109250.0,109240.0,1.4574083]
[1751607171714,0.9258046,109250.0,109240.0,0.62921179]
[1751607172021,1.2381911,109250.0,109240.0,0.32921179]
[1751607172221,1.2381911,109250.0,109240.0,0.65921179]
[1751607173926,1.8254046,109250.0,109240.0,0.65921179]
[1751607174321,1.6424,109250.0,109240.0,0.65921179]
[1751607174625,1.8254045,109250.0,109240.0,0.90859829]
[1751607174821,1.6424,109250.0,109240.0,0.90859829]
[1751607176625,1.6124,109250.0,109240.0,0.90859829]
[1751607179132,1.7954046,109250.0,109240.0,0.90859829]
[1751607179521,1.6124,109250.0,109240.0,0.90859829]
[1751607182032,1.7954046,109250.0,109240.0,0.90859829]
[1751607182331,1.81749787,109250.0,109240.0,0.90859829]
[1751607183030,1.63449327,109250.0,109240.0,0.90859829]
[1751607183330,1.81749807,109250.0,109240.0,0.90859829]
[1751607183631,1.63449327,109250.0,109240.0,0.90859829]
[1751607183825,1.81749807,109250.0,109240.0,0.90859829]
[1751607184026,1.81749807,109250.0,109240.0,0.65921179]
[1751607184330,1.81749807,109250.0,109240.0,0.90859829]
[1751607186830,1.63449327,109250.0,109240.0,0.90859829]
[1751607187333,1.81749777,109250.0,109240.0,0.90859829]
[1751607187935,1.83685135,109250.0,109240.0,0.65921179]
[1751607188135,1.83685135,109250.0,109240.0,0.90859829]
[1751607189136,1.65384685,109250.0,109240.0,0.90859829]
[1751607189630,1.29240685,109250.0,109240.0,0.90859829]
[1751607189831,1.45331808,109250.0,109240.0,0.94149829]
[1751607190031,1.47542001,109250.0,109240.0,0.94149829]
[1751607190235,1.26251551,109250.0,109240.0,0.94149829]
[1751607190436,1.01771358,109250.0,109240.0,1.00269829]
[1751607192338,0.18135358,109250.0,109240.0,1.00269829]
[1751607192537,1.01759358,109250.0,109240.0,1.00269829]
[1751607192738,1.01759358,109250.0,109240.0,0.75331179]
[1751607193038,1.01755358,109250.0,109240.0,1.00269829]
[1751607194940,1.20055808,109250.0,109240.0,1.00269829]
[1751607195334,1.04055808,109250.0,109240.0,1.00269829]
[1751607195534,1.42115808,109250.0,109240.0,1.00269829]
[1751607196138,1.42115808,109250.0,109240.0,0.9178119]
[1751607196345,1.45405808,109250.0,109240.0,0.8868119]
[1751607196839,1.45405808,109250.0,109240.0,0.94154158]
[1751607197140,1.81485808,109250.0,109240.0,0.90864158]
[1751607197445,2.08635682,109250.0,109240.0,0.05472968]
[1751607197635,0.1830213,109240.0,109230.0,0.32927708]
[1751607197939,1.25932004,109240.0,109230.0,0.32927708]
[1751607199036,1.25932004,109240.0,109230.0,0.39927708]
[1751607199244,1.25932004,109240.0,109230.0,0.59027708]